Cogmind - Beta 12 @@@ ROGUE MODE // 2023.05.24 @ 19:13:49 Player: Mr Goldstein Result: Destroyed by D-53 Grenadier with Mini Grenade Launcher Performance ------------- Evolutions (0) 0 Regions Visited (2) 400 Robots Destroyed (42) 210 Value Destroyed (946) 946 Prototype IDs (0) 0 Alien Tech Used (0) 0 Bonus (0) 0 TOTAL SCORE: 1556 Bonus ------- None Cogmind --------- Core Integrity 0/250 Matter 281/300 Energy 105/125 System Corruption 8% Temperature Cool (0) Movement Rolling (120) Ox2 Location -10/Mines Parts ------- > --- POWER (1) -------- Light Ion Engine > --- PROPULSION (2) --- Wheel Compact Wheel > --- UTILITY (2) ------ High-capacity Storage Unit Medium Armor Plating > --- WEAPON (2) ------- Assault Rifle Improved Grenade Launcher > --- INVENTORY (20) --- Medium Matter Pod (100) High-capacity Matter Pod (200) Light Armor Plating Light Armor Plating Light Armor Plating Light Armor Plating Light Armor Plating Light Armor Plating Light Armor Plating Light Armor Plating Light Armor Plating Light Armor Plating Light Armor Plating Medium Armor Plating Light Assault Rifle Light Assault Rifle Light Assault Rifle Shock Bomb Launcher Peak State ------------ > --- POWER ------------ Light Ion Engine > --- PROPULSION ------- Compact Wheel Compact Wheel > --- UTILITY ---------- High-capacity Storage Unit Medium Armor Plating > --- WEAPON ----------- Assault Rifle Improved Grenade Launcher > --- INVENTORY -------- Wheel Wheel Medium Matter Pod High-capacity Matter Pod Light Armor Plating Light Armor Plating Light Armor Plating Light Armor Plating Light Armor Plating Light Armor Plating Light Armor Plating Light Armor Plating Light Armor Plating Light Armor Plating Light Armor Plating Medium Armor Plating Light Assault Rifle Light Assault Rifle Light Assault Rifle Shock Bomb Launcher [Rating: 12] Favorites ----------- Power Light Ion Engine Engine Light Ion Engine Propulsion Compact Wheel Wheel Compact Wheel Utility Medium Armor Plating Storage High-capacity Storage Unit Hackware Hacking Suite Protection Medium Armor Plating Weapon Assault Rifle Ballistic Gun Assault Rifle Launcher Improved Grenade Launcher Build | -11 -10 -10 ------- Run | Jun Mat Min Slots Evolved . | . . . Power . | . . . Propulsion . | . . . Utility . | . . . Weapon . | . . . Parts Attached 25 | 6 15 4 Power 3 | 1 2 . Engine 3 | 1 2 . Core . | . . . Reactor . | . . . Propulsion 7 | 2 3 2 Treads . | . . . Leg . | . . . Wheel 7 | 2 3 2 Hover . | . . . Flight . | . . . Utility 9 | 1 7 1 Device . | . . . Storage 3 | 1 2 . Processor . | . . . Hackware 1 | . 1 . Protection 5 | . 4 1 Artifact . | . . . Weapon 6 | 2 3 1 Energy Gun . | . . . Energy Cannon . | . . . Ballistic Gun 5 | 2 3 . Ballistic Cannon . | . . . Launcher 1 | . . 1 Special Weapon . | . . . Impact Weapon . | . . . Slashing Weapon . | . . . Piercing Weapon . | . . . Special Melee Weapon . | . . . Unidentified Prototypes . | . . . Parts Lost 7 | . 4 3 Power 1 | . 1 . Propulsion 4 | . 2 2 Utility 1 | . . 1 Weapon 1 | . 1 . Highest Loss Streak 2 | . 2 2 To Critical Strikes . | . . . Average Slot Usage (%) 95 | . 94 100 Engine 11 | . 11 14 Wheel 26 | . 26 28 Storage 14 | . 14 14 Hackware 1 | . 2 . Protection 11 | . 11 14 Ballistic Gun 27 | . 27 22 Naked Turns . | . . . Heaviest Build 58 | 13 53 58 Greatest Support 32 | 26 32 32 Greatest Overweight (x) 9 | 1 9 2 Average Overweight (x) . | . . 1 Largest Inventory Capacity 20 | 8 20 20 Average Capacity 17 | 7 17 20 Most Carried 20 | 1 20 20 Average Carried 14 | . 13 19 Final Capacity 20 | 8 20 20 Final Carried 20 | 1 20 18 Class Distribution -------------------- 100% | Mutant Dominant Class ---------------- Mutant | -10/Materials Mutant | -10/Mines Resources | -11 -10 -10 ----------- Run | Jun Mat Min Matter Collected 1432 | 209 1097 126 Remotely . | . . . Salvage Created 1451 | . 1284 167 Parts 94 | . 84 10 Haulers Intercepted 2 | . 2 . Recyclers Shooed 3 | . 3 . Parts Field Recycled . | . . . Retrieved Matter . | . . . Parts Self-Destructed . | . . . Prevented . | . . . Kills | -11 -10 -10 ------- Run | Jun Mat Min Combat Hostiles Destroyed 28 | . 23 5 Guns 25 | . 23 2 AOE 3 | . . 3 Classes Destroyed 8 | . 8 . Worker 3 | . 3 . Builder 2 | . 2 . Hauler 2 | . 2 . Recycler 3 | . 2 1 Operator 1 | . 1 . Watcher 3 | . 3 . Swarmer 6 | . 3 3 Grunt 22 | . 20 2 Best Kill Streak 4 | . 4 3 Combat Bots Only 3 | . 3 3 Max Kills in Single Turn 2 | . 1 2 Gunslinging . | . . . Exploded 2 | . . 2 Melee . | . . . Uniques/NPCs Destroyed . | . . . Combat | -11 -10 -10 -------- Run | Jun Mat Min Damage Taken 1259 | . 737 522 Core 269 | . 141 128 Absorbed by Shields . | . . . Regen/Repaired (Parts) 143 | . 143 . Core Remaining (%) 100 | 100 . . Volleys Fired 142 | . 127 15 Largest 2 | . 2 2 Hottest 40 | . 40 40 Shots Fired 285 | . 257 28 Gun 283 | . 257 26 Cannon . | . . . Launcher 2 | . . 2 Special . | . . . Kinetic 283 | . 257 26 Thermal . | . . . Explosive 2 | . . 2 Electromagnetic . | . . . Robot Hit Streak 12 | . 10 12 Robot Miss Streak 4 | . 4 2 Penetration Max . | . . . Secondary Targets 1 | . . 1 Max Gunslinging Chain 1 | . . 1 Shots Hit Robots 175 | . 156 19 Core Hits 79 | . 69 10 Critical Kills . | . . . Critical Parts Destroyed 1 | . 1 . Critical Strikes 1 | . 1 . Destroy 1 | . 1 . Melee Attacks . | . . . Impact . | . . . Slashing . | . . . Piercing . | . . . Sneak Attacks . | . . . Combat Hostiles . | . . . Follow-up Attacks . | . . . Damage Inflicted 2092 | . 1685 407 Guns 1900 | . 1685 215 Cannons . | . . . Explosions 192 | . . 192 Melee . | . . . Ramming . | . . . Kinetic 1900 | . 1685 215 Thermal . | . . . Explosive 192 | . . 192 Electromagnetic . | . . . Impact . | . . . Slashing . | . . . Piercing . | . . . Highest Corruption 8 | . 8 8 Average Corruption 6 | . 6 8 Corruption Purged . | . . . Corruption Blocked . | . . . Effects 70 | . 57 13 Message Errors 17 | . 15 2 Matter Fused 18 | . 14 4 Heat Flow Errors 7 | . 5 2 Energy Discharges 8 | . 7 1 Parts Rejected 1 | . 1 . Data Loss (minor) 11 | . 8 3 Data Loss (major) 3 | . 2 1 Misfires 4 | . 4 . Alerts 1 | . 1 . Overload Shots . | . . . Overflow Damage . | . . . Projectiles . | . . . Explosions . | . . . Melee . | . . . Knockbacks . | . . . Impact . | . . . Kinetic . | . . . Secondary . | . . . Self-Inflicted Damage 26 | . . 26 Shots 1 | . . 1 Rammed . | . . . Targets Rammed . | . . . Kicked . | . . . Crushed . | . . . Highest Temperature 264 | . 181 264 Average Temperature 39 | . 24 92 Received Heat Transfer 552 | . 396 156 Siege Activations . | . . . Robots Corrupted . | . . . Combat Hostiles . | . . . Parts Fried . | . . . Impact Corruptions . | . . . Robots Melted . | . . . Combat Hostiles . | . . . Parts Melted . | . . . Heat Transferred . | . . . Parts Sabotaged . | . . . Parts Stolen . | . . . Parts Stripped . | . . . Power Chain Reactions . | . . . Missiles Intercepted . | . . . Alert | -11 -10 -10 ------- Run | Jun Mat Min Peak Influence 240 | . 240 220 Initial 93 | . . 93 Average 123 | . 121 153 Maximum Alert Level 1 | . 1 1 Low Security (%) 87 | 100 89 70 Level 1 12 | . 10 29 Level 2 . | . . . Level 3 . | . . . Level 4 . | . . . Level 5 . | . . . High Security . | . . . Max Security . | . . . Squads Dispatched 9 | . 9 . Investigation 9 | . 9 . Extermination . | . . . Reinforcement . | . . . Assault . | . . . Garrison . | . . . Intercept . | . . . Searches Triggered . | . . . Construction Impeded . | . . . Haulers Reinforced . | . . . Active Scanning Responses . | . . . Cargo Convoy Interrupts . | . . . Stealth | -11 -10 -10 --------- Run | Jun Mat Min Distress Signals 1 | . 1 . Communications Jammed . | . . . Distress Signals . | . . . Times Spotted 43 | . 36 7 Peak Tracking Total 5 | . 5 3 Tactical Retreats 1 | . 1 . Traps | -11 -10 -10 ------- Run | Jun Mat Min Traps Triggered 7 | . 7 . Indirectly . | . . . Trap Hack Attempts . | . . . Triggered . | . . . Disarmed . | . . . Reprogrammed . | . . . Reused . | . . . Traps Extracted . | . . . Installed . | . . . Triggered . | . . . Machines | -11 -10 -10 ---------- Run | Jun Mat Min Machines Disabled 1 | . 1 . Max in Single Turn 1 | . 1 . Machines Repaired . | . . . Machines Sabotaged . | . . . Overloaded Fab Kills . | . . . Hacking | -11 -10 -10 --------- Run | Jun Mat Min Machines Accessed 11 | . 10 1 Terminals 8 | . 8 . Fabricators . | . . . Repair Stations 1 | . 1 . Recycling Units 1 | . 1 . Scanalyzers . | . . . Garrison Access . | . . . Total Hacks 34 | . 33 1 Successful 21 | . 20 1 Failed 13 | . 13 . Catastrophic 3 | . 3 . Database Lockouts . | . . . Manual 23 | . 23 . Terminals 26 | . 26 . Fabricators . | . . . Repair Stations 6 | . 6 . Recycling Units 1 | . 1 . Scanalyzers . | . . . Garrison Access . | . . . Terminal Hacks 7 | . 6 1 Robot Analysis 4 | . 4 . Open Door 1 | . . 1 Alert Level 1 | . 1 . Registered Prototypes 1 | . 1 . Fabricator Hacks . | . . . Repair Station Hacks 5 | . 5 . Scan Component 2 | . 2 . Repair 2 | . 2 . Refit 1 | . 1 . Recycling Unit Hacks . | . . . Scanalyzer . | . . . Garrison Access Hacks . | . . . Unauthorized Hacks 9 | . 9 . Terminals 8 | . 8 . Botnet 1 | . 1 . Disrupt 3 | . 3 . Search 4 | . 4 . Fabricators . | . . . Repair Stations . | . . . Recycling Units 1 | . 1 . Tunnel 1 | . 1 . Scanalyzers . | . . . Garrison Access . | . . . Data Cores Recovered . | . . . Used . | . . . Hacking Detections 8 | . 8 . Full Trace Events 5 | . 5 . Feedback Events . | . . . Feedback Blocked . | . . . Robot Schematics Acquired . | . . . Robots Built . | . . . Authchips . | . . . Time . | . . . Total Robot Build Rating . | . . . Part Schematics Acquired . | . . . Parts Built . | . . . Authchips . | . . . Time . | . . . Total Part Build Rating . | . . . Parts Repaired 2 | . 2 . Time 58 | . 58 . Parts Recycled . | . . . Recycled Matter . | . . . Retrieved Matter . | . . . Retrieved Components . | . . . Parts Scanalyzed . | . . . Part Schematics Acquired . | . . . Parts Damaged . | . . . Bothacking | -11 -10 -10 ------------ Run | Jun Mat Min Used RIF Installer . | . . . Robots Hacked . | . . . Non-combat . | . . . Combat . | . . . Robot Hacks Applied . | . . . Relay Couplers Released . | . . . Fabnet Peak Effective % . | . . . Robots Rewired . | . . . Allies Hacked . | . . . Hacks Repelled . | . . . Allies | -11 -10 -10 -------- Run | Jun Mat Min Total Allies . | . . . Largest Group . | . . . Highest-Rated Group . | . . . Highest-Rated Ally . | . . . Total Orders . | . . . Ally Attacks . | . . . Total Damage . | . . . Kills . | . . . Allies Corrupted . | . . . Allies Melted . | . . . Intel | -11 -10 -10 ------- Run | Jun Mat Min Robot Analysis Total 4 | . 4 . Derelict Logs Recovered 1 | . . 1 Drone Launches . | . . . Drone Recoveries . | . . . Exploration | -11 -10 -10 ------------- Run | Jun Mat Min Turns Passed 2577 | 43 2192 342 Spaces Moved 1646 | 43 1373 230 Core 27 | 13 14 . Treads . | . . . Legs . | . . . Wheels 1619 | 30 1359 230 Hover . | . . . Flight . | . . . Fastest Speed 50 | 50 90 115 Average Speed 111 | 77 111 115 Slowest Speed 500 | 95 500 120 Overloaded Moves . | . . . Propulsion Burnouts . | . . . Robots Hopped . | . . . Cave-ins Triggered . | . . . Exploration Rate (%) 48 | 3 94 49 Regions Visited 2 Branch Regions 1 Pre-discovered Areas 1 | . 1 . Known Exits Taken . | . . . Unknown Exits Taken 2 | 1 1 . Scrap Searched . | . . . Spaces Dug 13 | . . 13 Terrain Destroyed 25 | . . 25 Melee . | . . . Projectile . | . . . AOE 25 | . . 25 Terrain Rammed . | . . . Walls Destroyed . | . . . Machines Disabled . | . . . Actions | -11 -10 -10 --------- Run | Jun Mat Min Total 2130 | 49 1799 282 Wait 284 | . 254 30 Move 1644 | 42 1372 230 Hop . | . . . Pick Up 29 | 1 26 2 Fast Attach 12 | 6 6 . Attach 7 | . 4 3 Detach . | . . . Swap 6 | . 5 1 Drop 6 | . 5 1 Fire 142 | . 127 15 Melee . | . . . Ram . | . . . Kick . | . . . Crush . | . . . Escape Stasis . | . . . Rewire . | . . . Trap . | . . . Miscellaneous . | . . . Route ------- -11/Junkyard -10/Materials (discovered 5 exits: [*Mat x3] / *Min x2) -10/Mines (discovered 1 exit: [*Mat]) History --------- Turn | Location | Event 2 | -11/Junkyard | Discovered new exit (range 16) 44 | -11/Junkyard | Entered Materials 103 | -10/Materials | Discovered new exit (range 16) 302 | -10/Materials | Discovered new exit (range 16) 314 | -10/Materials | Build established: Mutant 719 | -10/Materials | Discovered new exit (range 6) 788 | -10/Materials | Discovered new exit (range 5) 1117 | -10/Materials | Discovered new exit (range 16) 1171 | -10/Materials | Repaired Med. Armor Plating 1198 | -10/Materials | Repaired Lgt. Assault Rifle 1818 | -10/Materials | Core integrity fell below 50% 2236 | -10/Materials | Entered Mines 2246 | -10/Mines | Discovered new exit (range 3) 2330 | -10/Mines | Learned Materials emergency access door positions 2354 | -10/Mines | Met a Derelict who couldn't figure out how to use a Trap Extractor 2477 | -10/Mines | Core integrity fell below 20% 2527 | -10/Mines | Assembled infested the area 2532 | -10/Mines | Assisted by a Guerilla fighting off Assembled 2538 | -10/Mines | Found a hidden stash of uninstalled traps 2578 | -10/Mines | Destroyed by D-53 Grenadier with Mini Grenade Launcher Last Messages --------------- 02488_ U-05 Engineer lays Concrete. 02489_ U-05 Engineer builds a Wall. 02492_ System corrupted: Heat flow error (+208). 02494_ U-05 Engineer lays Concrete. 02499_ U-05 Engineer builds a Wall. 02527_ ALERT: Infestation in the mines, dispatching Demolisher response squad. 02532_ A derelict emerges from the shadows: "You need to get out of here! I've been tracking a group of Assembled to figure out where they're coming from, and they're closing on this area, come on!" 02533_ System corrupted: Matter fused (-5). 02538_ A stash of uninstalled traps is collected here! 02553_ System corrupted: Component data lost. 02568_ Acquired 43 matter. 02569_ Acquired 22 matter. 02571_ C-30 ARC bursts open, deploying its payload. 02571_ D-53 Grenadier unfolds itself. 02572_ System corrupted: Matter fused (-9). 02573_ Com. Wheel destroyed. 02576_ Wheel destroyed. Map ----- +----------------------------------------------------+ | | | | | | | | | | | | | | | ??????????????????????????????????????? | | ??????????????????????????????????????? | | ???###########????#####???????????????? | | ???# #???## ##??????????????? | | ???# """ ##### ##?????????????? | | ???# """ #?????????????? | | ???# """ #### #?????????????? | | ???# < #??# ##?????????????? | | ???# """ #??# #####??????????????? | | ???# """ #??# ###????????????????? | | ???# """ #??# ?????????????????? | | ???# #### ?????????????????? | | ???####### k### ####???????#?????????? | | ?????????# ## #???????? #?????????? | | ?????????# ##?????? %#?????????? | | ?????????# ##????# "##????????? | | ???####### ##### ##???????? | | ??## t d ##??????? | | ??# @ d #??????? | | ??# " ???????? | | ??## ####???????????? | | ???#### ##??????????????? | | ??????#### #???????????????? | | ????????## #???????????????? | | ???????## #????####???????? | | ??????## ## #???## ##??????? | | ??????# ##### #???# &#??????? | | ??????# #####???# ##### & ##?????? | | ??????## ##???????# &&&#?????? | | ???????############# ##### ####??? | | ?????????# ##??# #??? | | ?????????# ######### #??## ##### #??? | | ?????????# #???????# #??###???# #??? | | ?????????# ##??????# #????????# #??? | | ?######### ##????? #????????# #??? | | ?#"= #????? ##????????# #??? | | ?#"] ##???? #?????????# #### | | ?#"!! ##??? ##?????????# | | ?#"! ##?# ##??????????###### | | ?#"/! #X #?####??######????????? | | ?#"! ## #??????## # ##???????? | | ?###### ##??????# #???????? | | ????## ##???????# # ######### | +----------------------------------------------------+ Best States ------------- Heat Dissipation 25 Energy Generation 10 Energy Capacity 250 Matter Stores 300 Matter Capacity 300 Sight Range 16 Terrain Scan Density 10 Armor Coverage 225 Evasion (%) 42 Offensive Hacking 10 Item Schematics ----------------- None Robot Schematics ------------------ None Fabricated ------------ Nothing Alien Tech Used ----------------- None Achievements -------------- None Challenges ------------ None Game ------ Seed ZhirovStealthMatrix Manual? 0 Play Time 00:24:19 Cumulative 237.5 hours Start 2023.05.24 @ 17:17:03 End 2023.05.24 @ 19:13:49 Sessions 1 Manual Loads 0 Difficulty Rogue Special Mode None Game No. 713 Rogue 713 Adventurer 0 Explorer 0 Win Type - Total 10 Types 8/0/1/1/0/0/0/0/0 Lore% 86 Gallery% 82 Achievement% 73 Wizard Run 0 Options --------- ASCII 0 Keyboard 0 Movement Mouse Keybinds 0 Fullscreen 1 Font 16/SmallcapsGlow Map View 75x55 Tactical HUD 1 Map Filters NONE Filters NONE Steam 1 RUN: cb548cb0-3a74-4ace-bd9b-240d7859d20e